[Event "Titled Tuesday Blitz December 27 Early 2022"]
[White "Hoffmann, Asa"]
[Black "Matinian, Nikita"]
[WhiteFideId "2001470"]
[BlackFideId "24129100"]
[WhiteElo "2185"]
[BlackElo "2407"]
[Result "1/2-1/2"]
[Round "01"]
[TimeControl "180+2"]
[Date "2022.12.27"]
[WhiteClock "0:00:13"]
[BlackClock "0:00:09"]

1. d4 {[%clk 0:02:48]}  Nf6 {[%clk 0:02:58]} 2. Bg5 {[%clk 0:02:46]}  d5 {[%clk 0:02:53]} 3. Nd2 {[%clk 0:02:45]}  e6 {[%clk 0:02:46]} 4. e3 {[%clk 0:02:45]}  Be7 {[%clk 0:02:45]} 5. Bd3 {[%clk 0:02:44]}  b6 {[%clk 0:02:45]} 6. f4 {[%clk 0:02:44]}  Ba6 {[%clk 0:02:43]} 7. Bxa6 {[%clk 0:02:43]}  Nxa6 {[%clk 0:02:44]} 8. c3 {[%clk 0:02:42]}  O-O {[%clk 0:02:44]} 9. Ngf3 {[%clk 0:02:42]}  c5 {[%clk 0:02:44]} 10. Ne5 {[%clk 0:02:41]}  Nc7 {[%clk 0:02:43]} 11. O-O {[%clk 0:02:37]}  Nce8 {[%clk 0:02:39]} 12. a4 {[%clk 0:02:33]}  h6 {[%clk 0:02:39]} 13. Bh4 {[%clk 0:02:33]}  Qc7 {[%clk 0:02:39]} 14. Qf3 {[%clk 0:02:30]}  Nd6 {[%clk 0:02:39]} 15. Bxf6 {[%clk 0:02:24]}  Bxf6 {[%clk 0:02:39]} 16. g4 {[%clk 0:02:15]}  Bd8 {[%clk 0:02:32]} 17. Kh1 {[%clk 0:02:06]}  f6 {[%clk 0:02:30]} 18. Nd3 {[%clk 0:02:01]}  c4 {[%clk 0:02:25]} 19. Nf2 {[%clk 0:01:59]}  f5 {[%clk 0:02:25]} 20. gxf5 {[%clk 0:01:55]}  Rxf5 {[%clk 0:02:22]} 21. e4 {[%clk 0:01:54]}  dxe4 {[%clk 0:02:23]} 22. Nfxe4 {[%clk 0:01:53]}  Rc8 {[%clk 0:02:20]} 23. Rae1 {[%clk 0:01:50]}  Nxe4 {[%clk 0:02:08]} 24. Qxe4 {[%clk 0:01:46]}  Rf6 {[%clk 0:02:05]} 25. Nf3 {[%clk 0:01:43]}  Qxf4 {[%clk 0:02:02]} 26. Qxf4 {[%clk 0:01:43]}  Rxf4 {[%clk 0:02:02]} 27. Rxe6 {[%clk 0:01:41]}  Bh4 {[%clk 0:01:53]} 28. Kg2 {[%clk 0:01:38]}  Rcf8 {[%clk 0:01:53]} 29. d5 {[%clk 0:01:27]}  Bd8 {[%clk 0:01:34]} 30. d6 {[%clk 0:01:23]}  Rg4+ {[%clk 0:01:26]} 31. Kh3 {[%clk 0:01:22]}  h5 {[%clk 0:01:27]} 32. Nd2 {[%clk 0:01:17]}  Rh4+ {[%clk 0:01:18]} 33. Kg3 {[%clk 0:01:14]}  Rg4+ {[%clk 0:01:18]} 34. Kh3 {[%clk 0:01:14]}  Rh4+ {[%clk 0:01:06]} 35. Kg2 {[%clk 0:01:13]}  Rg4+ {[%clk 0:01:06]} 36. Kh1 {[%clk 0:01:13]}  Rxf1+ {[%clk 0:01:06]} 37. Nxf1 {[%clk 0:01:13]}  Kf7 {[%clk 0:00:59]} 38. Re5 {[%clk 0:01:07]}  Rg6 {[%clk 0:00:57]} 39. Rxh5 {[%clk 0:00:56]}  Rxd6 {[%clk 0:00:57]} 40. Ne3 {[%clk 0:00:56]}  Rc6 {[%clk 0:00:51]} 41. Rd5 {[%clk 0:00:52]}  Bf6 {[%clk 0:00:51]} 42. Kg2 {[%clk 0:00:51]}  Ke6 {[%clk 0:00:51]} 43. Kf3 {[%clk 0:00:49]}  a6 {[%clk 0:00:47]} 44. Rd1 {[%clk 0:00:41]}  Rc5 {[%clk 0:00:46]} 45. Rg1 {[%clk 0:00:36]}  b5 {[%clk 0:00:45]} 46. axb5 {[%clk 0:00:36]}  axb5 {[%clk 0:00:46]} 47. Rg4 {[%clk 0:00:36]}  Rh5 {[%clk 0:00:41]} 48. Kg2 {[%clk 0:00:32]}  Kd6 {[%clk 0:00:37]} 49. Re4 {[%clk 0:00:32]}  Kc5 {[%clk 0:00:35]} 50. Ng4 {[%clk 0:00:31]}  b4 {[%clk 0:00:23]} 51. Nxf6 {[%clk 0:00:30]}  gxf6 {[%clk 0:00:24]} 52. Rf4 {[%clk 0:00:28]}  f5 {[%clk 0:00:22]} 53. h4 {[%clk 0:00:29]}  b3 {[%clk 0:00:18]} 54. Kg3 {[%clk 0:00:28]}  Kb5 {[%clk 0:00:17]} 55. Rd4 {[%clk 0:00:25]}  Rh8 {[%clk 0:00:16]} 56. Rf4 {[%clk 0:00:22]}  Rg8+ {[%clk 0:00:16]} 57. Kf3 {[%clk 0:00:22]}  Rd8 {[%clk 0:00:09]} 58. Rxf5+ {[%clk 0:00:21]}  Kb6 {[%clk 0:00:10]} 59. Rf6+ {[%clk 0:00:19]}  Kb5 {[%clk 0:00:10]} 60. Rf5+ {[%clk 0:00:18]}  Kb6 {[%clk 0:00:10]} 61. h5 {[%clk 0:00:17]}  Rd2 {[%clk 0:00:09]} 62. Rf4 {[%clk 0:00:16]}  Rxb2 {[%clk 0:00:08]} 63. Rxc4 {[%clk 0:00:15]}  Rh2 {[%clk 0:00:07]} 64. Rb4+ {[%clk 0:00:15]}  Kc5 {[%clk 0:00:07]} 65. Rxb3 {[%clk 0:00:15]}  Rxh5 {[%clk 0:00:08]} 66. Rb8 {[%clk 0:00:14]}  Kc4 {[%clk 0:00:08]} 67. Rc8+ {[%clk 0:00:13]}  Rc5 {[%clk 0:00:07]} 68. Rxc5+ {[%clk 0:00:12]}  Kxc5 {[%clk 0:00:08]} 69. Ke4 {[%clk 0:00:13]}  Kc4 {[%clk 0:00:09]} 70. Kf5 {[%clk 0:00:13]}  Kxc3 {[%clk 0:00:09]} 1/2-1/2


[Site "https://www.chess.com"]

[Event "Titled Tuesday Blitz December 27 Early 2022"]
[White "Iskusnyh, Sergei"]
[Black "Roque Sola, Jose Luis"]
[WhiteFideId "4120027"]
[BlackFideId "5120390"]
[WhiteElo "2440"]
[BlackElo "2217"]
[Result "1-0"]
[Round "01"]
[TimeControl "180+2"]
[Date "2022.12.27"]
[WhiteClock "0:00:38"]
[BlackClock "0:00:04"]

1. d4 {[%clk 0:02:45]}  Nf6 {[%clk 0:02:58]} 2. c4 {[%clk 0:02:43]}  g6 {[%clk 0:02:56]} 3. g3 {[%clk 0:02:42]}  Bg7 {[%clk 0:02:54]} 4. Bg2 {[%clk 0:02:43]}  d5 {[%clk 0:02:54]} 5. Nc3 {[%clk 0:02:43]}  c6 {[%clk 0:02:53]} 6. Nf3 {[%clk 0:02:38]}  O-O {[%clk 0:02:51]} 7. Qb3 {[%clk 0:02:38]}  Na6 {[%clk 0:02:29]} 8. O-O {[%clk 0:02:35]}  dxc4 {[%clk 0:01:57]} 9. Qxc4 {[%clk 0:02:33]}  Be6 {[%clk 0:01:57]} 10. Qa4 {[%clk 0:02:29]}  Qd7 {[%clk 0:01:36]} 11. Rd1 {[%clk 0:02:22]}  Bh3 {[%clk 0:01:33]} 12. Bh1 {[%clk 0:02:17]}  Nd5 {[%clk 0:01:31]} 13. Nxd5 {[%clk 0:02:08]}  cxd5 {[%clk 0:01:32]} 14. Qxd7 {[%clk 0:02:00]}  Bxd7 {[%clk 0:01:33]} 15. Ne5 {[%clk 0:01:57]}  Bxe5 {[%clk 0:01:24]} 16. dxe5 {[%clk 0:01:55]}  e6 {[%clk 0:01:24]} 17. Be3 {[%clk 0:01:47]}  b6 {[%clk 0:01:22]} 18. Rac1 {[%clk 0:01:44]}  Rac8 {[%clk 0:01:21]} 19. Bh6 {[%clk 0:01:39]}  Rfe8 {[%clk 0:01:18]} 20. e4 {[%clk 0:01:36]}  Bc6 {[%clk 0:00:40]} 21. exd5 {[%clk 0:01:30]}  exd5 {[%clk 0:00:40]} 22. Bxd5 {[%clk 0:01:25]}  Bxd5 {[%clk 0:00:41]} 23. Rxc8 {[%clk 0:01:21]}  Rxc8 {[%clk 0:00:41]} 24. Rxd5 {[%clk 0:01:19]}  Nb4 {[%clk 0:00:40]} 25. Rd7 {[%clk 0:01:16]}  Nxa2 {[%clk 0:00:36]} 26. Rxa7 {[%clk 0:01:14]}  Nb4 {[%clk 0:00:37]} 27. Rb7 {[%clk 0:01:09]}  Nd5 {[%clk 0:00:34]} 28. Kg2 {[%clk 0:01:04]}  Re8 {[%clk 0:00:10]} 29. Rd7 {[%clk 0:00:56]}  Ne7 {[%clk 0:00:09]} 30. g4 {[%clk 0:00:52]}  Nc8 {[%clk 0:00:04]} 31. f4 {[%clk 0:00:43]}  Ne7 {[%clk 0:00:04]} 32. Bg5 {[%clk 0:00:40]}  Nc6 {[%clk 0:00:04]} 33. Rd6 {[%clk 0:00:38]} 1-0


[Site "https://www.chess.com"]

[Event "Titled Tuesday Blitz December 27 Early 2022"]
[White "Jaracz, Pawel"]
[Black "Fernandez Garcia, Gumersindo"]
[WhiteFideId "1102222"]
[BlackFideId "24516740"]
[WhiteElo "2467"]
[BlackElo "2160"]
[Result "1-0"]
[Round "01"]
[TimeControl "180+2"]
[Date "2022.12.27"]
[WhiteClock "0:01:32"]
[BlackClock "0:00:09"]

1. d4 {[%clk 0:02:56]}  Nf6 {[%clk 0:02:35]} 2. Nc3 {[%clk 0:02:55]}  e6 {[%clk 0:02:35]} 3. e4 {[%clk 0:02:54]}  Bb4 {[%clk 0:02:32]} 4. e5 {[%clk 0:02:51]}  Nd5 {[%clk 0:02:30]} 5. Qg4 {[%clk 0:02:46]}  Kf8 {[%clk 0:02:02]} 6. Bd2 {[%clk 0:02:42]}  c5 {[%clk 0:01:51]} 7. a3 {[%clk 0:02:40]}  Bxc3 {[%clk 0:01:47]} 8. bxc3 {[%clk 0:02:41]}  Nc6 {[%clk 0:01:44]} 9. Nf3 {[%clk 0:02:37]}  d6 {[%clk 0:01:40]} 10. Bd3 {[%clk 0:02:25]}  dxe5 {[%clk 0:01:32]} 11. dxe5 {[%clk 0:02:25]}  h6 {[%clk 0:01:25]} 12. O-O {[%clk 0:02:14]}  b6 {[%clk 0:01:19]} 13. h4 {[%clk 0:02:00]}  Bb7 {[%clk 0:01:12]} 14. c4 {[%clk 0:01:57]}  Nde7 {[%clk 0:01:10]} 15. Bc3 {[%clk 0:01:57]}  Nd4 {[%clk 0:01:04]} 16. Nxd4 {[%clk 0:01:54]}  cxd4 {[%clk 0:01:05]} 17. Qxd4 {[%clk 0:01:50]}  Qxd4 {[%clk 0:01:03]} 18. Bxd4 {[%clk 0:01:50]}  Nc6 {[%clk 0:01:01]} 19. Bc3 {[%clk 0:01:50]}  Ke7 {[%clk 0:00:56]} 20. f4 {[%clk 0:01:49]}  g6 {[%clk 0:00:55]} 21. h5 {[%clk 0:01:48]}  Rhg8 {[%clk 0:00:49]} 22. hxg6 {[%clk 0:01:47]}  fxg6 {[%clk 0:00:48]} 23. Rab1 {[%clk 0:01:47]}  Rab8 {[%clk 0:00:38]} 24. Rf3 {[%clk 0:01:38]}  g5 {[%clk 0:00:25]} 25. f5 {[%clk 0:01:33]}  exf5 {[%clk 0:00:19]} 26. Rxf5 {[%clk 0:01:33]}  Nd8 {[%clk 0:00:18]} 27. Rf6 {[%clk 0:01:32]}  Ne6 {[%clk 0:00:17]} 28. Bb4+ {[%clk 0:01:32]}  Kd7 {[%clk 0:00:14]} 29. Bf5 {[%clk 0:01:32]}  Rbe8 {[%clk 0:00:09]} 30. Rd1+ {[%clk 0:01:32]} 1-0


[Site "https://www.chess.com"]

[Event "Titled Tuesday Blitz December 27 Early 2022"]
[White "Jiganchine, Roman"]
[Black "Usmanov, Vasily"]
[WhiteFideId "2603667"]
[BlackFideId "4135741"]
[WhiteElo "2205"]
[BlackElo "2450"]
[Result "0-1"]
[Round "01"]
[TimeControl "180+2"]
[Date "2022.12.27"]
[WhiteClock "0:00:02"]
[BlackClock "0:01:45"]

1. e4 {[%clk 0:02:59]}  c5 {[%clk 0:02:56]} 2. Nf3 {[%clk 0:02:58]}  e6 {[%clk 0:02:55]} 3. g3 {[%clk 0:02:57]}  Nc6 {[%clk 0:02:53]} 4. Bg2 {[%clk 0:02:56]}  d5 {[%clk 0:02:52]} 5. exd5 {[%clk 0:02:45]}  exd5 {[%clk 0:02:53]} 6. O-O {[%clk 0:02:44]}  Bd6 {[%clk 0:02:53]} 7. d4 {[%clk 0:02:42]}  c4 {[%clk 0:02:53]} 8. b3 {[%clk 0:02:40]}  cxb3 {[%clk 0:02:53]} 9. axb3 {[%clk 0:02:40]}  Nge7 {[%clk 0:02:54]} 10. Na3 {[%clk 0:02:22]}  O-O {[%clk 0:02:53]} 11. c3 {[%clk 0:02:21]}  a6 {[%clk 0:02:51]} 12. Nc2 {[%clk 0:02:21]}  h6 {[%clk 0:02:48]} 13. Ne3 {[%clk 0:02:20]}  Re8 {[%clk 0:02:48]} 14. Qd3 {[%clk 0:02:19]}  Be6 {[%clk 0:02:47]} 15. Nh4 {[%clk 0:02:15]}  Qd7 {[%clk 0:02:46]} 16. Bb2 {[%clk 0:02:07]}  Bh3 {[%clk 0:02:40]} 17. Rfe1 {[%clk 0:01:51]}  Bxg2 {[%clk 0:02:40]} 18. Kxg2 {[%clk 0:01:52]}  Nd8 {[%clk 0:02:30]} 19. Re2 {[%clk 0:01:40]}  Ne6 {[%clk 0:02:30]} 20. Rae1 {[%clk 0:01:39]}  Qc6 {[%clk 0:02:22]} 21. Nhf5 {[%clk 0:01:32]}  Nxf5 {[%clk 0:02:21]} 22. Qxf5 {[%clk 0:01:29]}  Nc7 {[%clk 0:02:13]} 23. Qg4 {[%clk 0:01:08]}  Re4 {[%clk 0:02:10]} 24. Qf3 {[%clk 0:00:53]}  Rae8 {[%clk 0:02:07]} 25. Nf5 {[%clk 0:00:52]}  Bf8 {[%clk 0:02:02]} 26. c4 {[%clk 0:00:39]}  Rxe2 {[%clk 0:02:00]} 27. Rxe2 {[%clk 0:00:26]}  Rxe2 {[%clk 0:01:59]} 28. Qxe2 {[%clk 0:00:26]}  dxc4+ {[%clk 0:01:58]} 29. Kg1 {[%clk 0:00:18]}  cxb3 {[%clk 0:01:58]} 30. d5 {[%clk 0:00:08]}  Nxd5 {[%clk 0:01:56]} 31. Qe5 {[%clk 0:00:05]}  Qf6 {[%clk 0:01:44]} 32. Nxh6+ {[%clk 0:00:03]}  gxh6 {[%clk 0:01:43]} 33. Qxf6 {[%clk 0:00:01]}  Nxf6 {[%clk 0:01:44]} 34. Bxf6 {[%clk 0:00:02]}  Bg7 {[%clk 0:01:45]} 0-1


[Site "https://www.chess.com"]

[Event "Titled Tuesday Blitz December 27 Early 2022"]
[White "Jimenez Almeida, Luis David"]
[Black "Svane, Frederik"]
[WhiteFideId "22242244"]
[BlackFideId "12923044"]
[WhiteElo "2242"]
[BlackElo "2600"]
[Result "1-0"]
[Round "01"]
[TimeControl "180+2"]
[Date "2022.12.27"]
[WhiteClock "0:00:02"]
[BlackClock "0:00:01"]

1. e4 {[%clk 0:02:58]}  c5 {[%clk 0:02:56]} 2. Nc3 {[%clk 0:02:58]}  e6 {[%clk 0:02:56]} 3. Nge2 {[%clk 0:02:58]}  Nc6 {[%clk 0:02:56]} 4. g3 {[%clk 0:02:57]}  d5 {[%clk 0:02:56]} 5. Bg2 {[%clk 0:02:56]}  Nf6 {[%clk 0:02:55]} 6. d3 {[%clk 0:02:53]}  Be7 {[%clk 0:02:52]} 7. O-O {[%clk 0:02:52]}  O-O {[%clk 0:02:51]} 8. h3 {[%clk 0:02:50]}  h6 {[%clk 0:02:38]} 9. f4 {[%clk 0:02:47]}  dxe4 {[%clk 0:02:30]} 10. dxe4 {[%clk 0:02:43]}  Qxd1 {[%clk 0:02:15]} 11. Rxd1 {[%clk 0:02:42]}  Nb4 {[%clk 0:02:15]} 12. e5 {[%clk 0:02:35]}  Nfd5 {[%clk 0:02:00]} 13. Be4 {[%clk 0:02:20]}  f5 {[%clk 0:01:45]} 14. Bxd5 {[%clk 0:01:59]}  exd5 {[%clk 0:01:39]} 15. Nxd5 {[%clk 0:02:00]}  Nxd5 {[%clk 0:01:37]} 16. Rxd5 {[%clk 0:02:01]}  Be6 {[%clk 0:01:37]} 17. Rd1 {[%clk 0:02:01]}  a5 {[%clk 0:01:35]} 18. a4 {[%clk 0:01:56]}  Kf7 {[%clk 0:01:25]} 19. Be3 {[%clk 0:01:52]}  Rfd8 {[%clk 0:01:22]} 20. Kf2 {[%clk 0:01:50]}  b6 {[%clk 0:01:19]} 21. b3 {[%clk 0:01:41]}  Bd7 {[%clk 0:01:16]} 22. c4 {[%clk 0:01:33]}  Bc6 {[%clk 0:01:15]} 23. Nc3 {[%clk 0:01:33]}  Ke6 {[%clk 0:01:16]} 24. g4 {[%clk 0:01:13]}  Bh4+ {[%clk 0:01:03]} 25. Ke2 {[%clk 0:01:11]}  g5 {[%clk 0:01:03]} 26. gxf5+ {[%clk 0:01:03]}  Kxf5 {[%clk 0:01:03]} 27. fxg5 {[%clk 0:00:54]}  hxg5 {[%clk 0:00:58]} 28. Rg1 {[%clk 0:00:46]}  Re8 {[%clk 0:00:50]} 29. Raf1+ {[%clk 0:00:44]}  Kxe5 {[%clk 0:00:46]} 30. Bxg5 {[%clk 0:00:38]}  Kd6+ {[%clk 0:00:40]} 31. Kd2 {[%clk 0:00:37]}  Bxg5+ {[%clk 0:00:40]} 32. Rxg5 {[%clk 0:00:38]}  Re6 {[%clk 0:00:40]} 33. Rfg1 {[%clk 0:00:35]}  Rh8 {[%clk 0:00:38]} 34. R1g3 {[%clk 0:00:33]}  Rh4 {[%clk 0:00:36]} 35. Nb5+ {[%clk 0:00:31]}  Bxb5 {[%clk 0:00:33]} 36. axb5 {[%clk 0:00:32]}  Reh6 {[%clk 0:00:20]} 37. Rg6+ {[%clk 0:00:31]}  Ke5 {[%clk 0:00:19]} 38. Rxh6 {[%clk 0:00:28]}  Rxh6 {[%clk 0:00:20]} 39. Ke3 {[%clk 0:00:28]}  Rh4 {[%clk 0:00:17]} 40. Kf3 {[%clk 0:00:28]}  Rd4 {[%clk 0:00:16]} 41. Rg5+ {[%clk 0:00:27]}  Kf6 {[%clk 0:00:16]} 42. Rg3 {[%clk 0:00:26]}  Kf5 {[%clk 0:00:16]} 43. Ke3 {[%clk 0:00:25]}  Rd1 {[%clk 0:00:14]} 44. Rf3+ {[%clk 0:00:25]}  Ke5 {[%clk 0:00:14]} 45. Rg3 {[%clk 0:00:26]}  Rb1 {[%clk 0:00:13]} 46. Kd2 {[%clk 0:00:26]}  Rh1 {[%clk 0:00:12]} 47. Kc2 {[%clk 0:00:25]}  Rh2+ {[%clk 0:00:10]} 48. Kc3 {[%clk 0:00:25]}  Kd6 {[%clk 0:00:05]} 49. Rg6+ {[%clk 0:00:24]}  Kc7 {[%clk 0:00:05]} 50. Rh6 {[%clk 0:00:25]}  Rf2 {[%clk 0:00:05]} 51. h4 {[%clk 0:00:23]}  Rf3+ {[%clk 0:00:05]} 52. Kb2 {[%clk 0:00:23]}  Rh3 {[%clk 0:00:05]} 53. Ka3 {[%clk 0:00:23]}  Rh1 {[%clk 0:00:04]} 54. Rh7+ {[%clk 0:00:23]}  Kd6 {[%clk 0:00:05]} 55. h5 {[%clk 0:00:23]}  Rh2 {[%clk 0:00:04]} 56. h6 {[%clk 0:00:22]}  Ke5 {[%clk 0:00:03]} 57. Rh8 {[%clk 0:00:22]}  Kd4 {[%clk 0:00:01]} 58. Rd8+ {[%clk 0:00:19]}  Kc3 {[%clk 0:00:02]} 59. Rd6 {[%clk 0:00:11]}  Rh1 {[%clk 0:00:02]} 60. Ka2 {[%clk 0:00:11]}  Kb4 {[%clk 0:00:01]} 61. Rxb6 {[%clk 0:00:08]}  Rh2+ {[%clk 0:00:01]} 62. Kb1 {[%clk 0:00:08]}  Kxb3 {[%clk 0:00:01]} 63. Kc1 {[%clk 0:00:08]}  Kxc4 {[%clk 0:00:01]} 64. Rg6 {[%clk 0:00:03]}  Kxb5 {[%clk 0:00:01]} 65. Kb1 {[%clk 0:00:02]}  Kb4 {[%clk 0:00:01]} 66. Rg4+ {[%clk 0:00:01]}  c4 {[%clk 0:00:01]} 67. Rg6 {[%clk 0:00:02]} 1-0


[Site "https://www.chess.com"]

[Event "Titled Tuesday Blitz December 27 Early 2022"]
[White "Jimenez, Joaquin"]
[Black "Rohith Krishna S"]
[WhiteFideId "109860"]
[BlackFideId "46617051"]
[WhiteElo "2195"]
[BlackElo "2385"]
[Result "0-1"]
[Round "01"]
[TimeControl "180+2"]
[Date "2022.12.27"]
[WhiteClock "0:00:14"]
[BlackClock "0:00:59"]

1. e4 {[%clk 0:02:57]}  e5 {[%clk 0:02:55]} 2. Nf3 {[%clk 0:02:56]}  Nc6 {[%clk 0:02:50]} 3. Bb5 {[%clk 0:02:54]}  Nge7 {[%clk 0:02:41]} 4. Nc3 {[%clk 0:02:45]}  a6 {[%clk 0:02:32]} 5. Ba4 {[%clk 0:02:45]}  d6 {[%clk 0:02:30]} 6. h3 {[%clk 0:02:41]}  g6 {[%clk 0:02:28]} 7. d4 {[%clk 0:02:28]}  b5 {[%clk 0:02:23]} 8. Bb3 {[%clk 0:02:25]}  Bg7 {[%clk 0:02:21]} 9. dxe5 {[%clk 0:02:18]}  Nxe5 {[%clk 0:02:18]} 10. Nxe5 {[%clk 0:02:17]}  Bxe5 {[%clk 0:02:18]} 11. f4 {[%clk 0:02:10]}  Bg7 {[%clk 0:02:17]} 12. O-O {[%clk 0:02:09]}  O-O {[%clk 0:02:16]} 13. Be3 {[%clk 0:02:03]}  c5 {[%clk 0:02:13]} 14. Bd5 {[%clk 0:02:03]}  Nxd5 {[%clk 0:02:12]} 15. Nxd5 {[%clk 0:02:00]}  Re8 {[%clk 0:02:12]} 16. Qf3 {[%clk 0:01:54]}  Bb7 {[%clk 0:02:00]} 17. c3 {[%clk 0:01:53]}  b4 {[%clk 0:01:51]} 18. Rad1 {[%clk 0:01:47]}  Qa5 {[%clk 0:01:44]} 19. cxb4 {[%clk 0:01:40]}  cxb4 {[%clk 0:01:45]} 20. Bb6 {[%clk 0:01:22]}  Qxa2 {[%clk 0:01:43]} 21. Nc7 {[%clk 0:01:13]}  Bxe4 {[%clk 0:01:40]} 22. Qf2 {[%clk 0:01:06]}  Qxb2 {[%clk 0:01:33]} 23. Qxb2 {[%clk 0:01:04]}  Bxb2 {[%clk 0:01:33]} 24. Rxd6 {[%clk 0:00:58]}  b3 {[%clk 0:01:28]} 25. Nxa8 {[%clk 0:00:55]}  Rxa8 {[%clk 0:01:22]} 26. Re1 {[%clk 0:00:47]}  f5 {[%clk 0:01:16]} 27. Re3 {[%clk 0:00:44]}  Bc2 {[%clk 0:01:11]} 28. Rd7 {[%clk 0:00:33]}  Bf6 {[%clk 0:01:06]} 29. Rb7 {[%clk 0:00:17]}  b2 {[%clk 0:01:01]} 30. Bd8 {[%clk 0:00:14]}  Rxd8 {[%clk 0:00:58]} 31. Rxb2 {[%clk 0:00:14]}  Bxb2 {[%clk 0:00:59]} 0-1


[Site "https://www.chess.com"]

[Event "Titled Tuesday Blitz December 27 Early 2022"]
[White "Kamsky, Gata"]
[Black "Kabanov, Nikolai"]
[WhiteFideId "2000024"]
[BlackFideId "4127820"]
[WhiteElo "2665"]
[BlackElo "2429"]
[Result "1-0"]
[Round "01"]
[TimeControl "180+2"]
[Date "2022.12.27"]
[WhiteClock "0:00:20"]
[BlackClock "0:00:21"]

1. d4 {[%clk 0:02:43]}  Nf6 {[%clk 0:02:59]} 2. Bf4 {[%clk 0:02:41]}  d5 {[%clk 0:02:56]} 3. e3 {[%clk 0:02:37]}  c5 {[%clk 0:02:56]} 4. c3 {[%clk 0:02:34]}  Nc6 {[%clk 0:02:56]} 5. Nd2 {[%clk 0:02:18]}  Qb6 {[%clk 0:02:53]} 6. Qb3 {[%clk 0:02:16]}  c4 {[%clk 0:02:48]} 7. Qc2 {[%clk 0:02:13]}  g6 {[%clk 0:02:46]} 8. e4 {[%clk 0:02:02]}  Nxe4 {[%clk 0:02:33]} 9. Nxe4 {[%clk 0:01:58]}  dxe4 {[%clk 0:02:13]} 10. Bxc4 {[%clk 0:01:54]}  Bf5 {[%clk 0:02:05]} 11. Ne2 {[%clk 0:01:33]}  Rc8 {[%clk 0:01:53]} 12. Qb3 {[%clk 0:01:27]}  Qxb3 {[%clk 0:01:51]} 13. axb3 {[%clk 0:01:22]}  a6 {[%clk 0:01:44]} 14. Ng3 {[%clk 0:01:20]}  Bg7 {[%clk 0:01:40]} 15. Bd5 {[%clk 0:01:12]}  e5 {[%clk 0:01:33]} 16. dxe5 {[%clk 0:01:07]}  Nxe5 {[%clk 0:01:32]} 17. Bxe5 {[%clk 0:01:06]}  Bxe5 {[%clk 0:01:31]} 18. Bxb7 {[%clk 0:00:58]}  Rb8 {[%clk 0:01:21]} 19. Bc6+ {[%clk 0:00:49]}  Ke7 {[%clk 0:01:21]} 20. b4 {[%clk 0:00:44]}  Bc8 {[%clk 0:01:03]} 21. Nxe4 {[%clk 0:00:36]}  Rd8 {[%clk 0:00:59]} 22. Nc5 {[%clk 0:00:34]}  Rb6 {[%clk 0:00:57]} 23. Bf3 {[%clk 0:00:32]}  Rbd6 {[%clk 0:00:51]} 24. O-O {[%clk 0:00:31]}  f5 {[%clk 0:00:47]} 25. Bb7 {[%clk 0:00:26]}  Rd2 {[%clk 0:00:41]} 26. Rfe1 {[%clk 0:00:22]}  Kf6 {[%clk 0:00:20]} 27. Bxc8 {[%clk 0:00:21]}  Rxc8 {[%clk 0:00:19]} 28. Rxa6+ {[%clk 0:00:21]}  Rd6 {[%clk 0:00:20]} 29. Rxd6+ {[%clk 0:00:20]}  Bxd6 {[%clk 0:00:21]} 30. Re6+ {[%clk 0:00:20]} 1-0


[Site "https://www.chess.com"]

[Event "Titled Tuesday Blitz December 27 Early 2022"]
[White "Kezin, Roman"]
[Black "Majdan, Joanna"]
[WhiteFideId "24124621"]
[BlackFideId "1121979"]
[WhiteElo "2514"]
[BlackElo "2306"]
[Result "1-0"]
[Round "01"]
[TimeControl "180+2"]
[Date "2022.12.27"]
[WhiteClock "0:00:49"]
[BlackClock "0:00:34"]

1. Nf3 {[%clk 0:02:57]}  Nf6 {[%clk 0:02:59]} 2. b3 {[%clk 0:02:58]}  g6 {[%clk 0:02:57]} 3. Bb2 {[%clk 0:02:57]}  Bg7 {[%clk 0:02:57]} 4. c4 {[%clk 0:02:57]}  c5 {[%clk 0:02:57]} 5. e3 {[%clk 0:02:56]}  O-O {[%clk 0:02:56]} 6. Be2 {[%clk 0:02:56]}  Nc6 {[%clk 0:02:56]} 7. O-O {[%clk 0:02:56]}  d5 {[%clk 0:02:56]} 8. cxd5 {[%clk 0:02:57]}  Nxd5 {[%clk 0:02:53]} 9. Bxg7 {[%clk 0:02:58]}  Kxg7 {[%clk 0:02:53]} 10. Qc1 {[%clk 0:02:55]}  b6 {[%clk 0:02:53]} 11. d4 {[%clk 0:02:55]}  Qd6 {[%clk 0:02:39]} 12. dxc5 {[%clk 0:02:51]}  bxc5 {[%clk 0:02:39]} 13. Nc3 {[%clk 0:02:35]}  Bf5 {[%clk 0:02:25]} 14. Rd1 {[%clk 0:02:32]}  Nxc3 {[%clk 0:02:20]} 15. Qxc3+ {[%clk 0:02:30]}  Qf6 {[%clk 0:02:21]} 16. Qxc5 {[%clk 0:02:24]}  Rac8 {[%clk 0:02:20]} 17. Rac1 {[%clk 0:02:15]}  h5 {[%clk 0:02:19]} 18. Ba6 {[%clk 0:02:00]}  Rc7 {[%clk 0:02:13]} 19. Nd4 {[%clk 0:01:58]}  Be4 {[%clk 0:02:05]} 20. Bf1 {[%clk 0:01:45]}  Rfc8 {[%clk 0:01:56]} 21. Nb5 {[%clk 0:01:43]}  Rb7 {[%clk 0:01:46]} 22. Nc3 {[%clk 0:01:40]}  Bf5 {[%clk 0:01:32]} 23. Nd5 {[%clk 0:01:39]}  Qg5 {[%clk 0:01:25]} 24. Nf4 {[%clk 0:01:22]}  e5 {[%clk 0:01:20]} 25. Ne2 {[%clk 0:01:15]}  a6 {[%clk 0:01:07]} 26. Ng3 {[%clk 0:01:14]}  Rb5 {[%clk 0:01:04]} 27. Bxb5 {[%clk 0:01:12]}  axb5 {[%clk 0:01:02]} 28. Qd6 {[%clk 0:01:04]}  Bg4 {[%clk 0:00:54]} 29. Ne4 {[%clk 0:00:48]}  Qf5 {[%clk 0:00:43]} 30. f3 {[%clk 0:00:48]}  Bxf3 {[%clk 0:00:37]} 31. gxf3 {[%clk 0:00:49]}  Qxf3 {[%clk 0:00:35]} 32. Qf6+ {[%clk 0:00:49]}  Qxf6 {[%clk 0:00:34]} 33. Nxf6 {[%clk 0:00:50]}  Kxf6 {[%clk 0:00:34]} 34. Rd6+ {[%clk 0:00:49]} 1-0


[Site "https://www.chess.com"]